bitfinex/quotes_SOLUSD_20230120
["timestamp","ask_amount","ask_price","bid_price","bid_amount"]
[1674247263368,63.21487501,24.166,24.142,10.0]
[1674247263564,20.0,24.165,24.142,10.0]
[1674247263994,2.64691,24.164,24.143,10.0]
[1674247264412,34.82178501,24.164,24.143,10.0]
[1674247264633,17.96,24.163,24.143,10.0]
[1674247264848,2.64691,24.162,24.143,10.0]
[1674247265242,2.64691,24.162,24.144,20.0]
[1674247265793,10.0,24.158,24.144,20.0]
[1674247265990,10.0,24.158,24.145,17.96]
[1674247266613,10.0,24.158,24.126,31.09]
[1674247266827,10.0,24.158,24.132,20.0]
[1674247267044,10.0,24.158,24.132,23.75576951]
[1674247267453,10.0,24.158,24.128,23.75576951]
[1674247267663,10.0,24.158,24.132,23.75576951]
[1674247267880,152.0872,24.179,24.145,10.0]
[1674247268094,2.64691,24.172,24.145,10.0]
[1674247268303,2.64691,24.172,24.146,23.75576951]
[1674247268508,121.0672,24.179,24.146,23.75576951]
[1674247268720,278.6872,24.179,24.133,31.08]
[1674247269043,10.0,24.157,24.138,23.75576951]
[1674247269255,10.0,24.157,24.127,10.0]
[1674247269469,10.0,24.157,24.132,23.75576951]
[1674247269870,10.0,24.157,24.133,10.0]
[1674247270296,17.96,24.156,24.133,10.0]
[1674247270504,68.08527408,24.156,24.133,10.0]
[1674247270817,70.12527408,24.155,24.133,10.0]
[1674247271028,17.96,24.154,24.133,10.0]
[1674247271236,126.6,24.153,24.133,10.0]
[1674247271454,144.56,24.152,24.133,10.0]
[1674247271663,126.6,24.152,24.133,10.0]
[1674247271869,31.04,24.167,24.127,10.0]
[1674247272082,50.12527408,24.16,24.127,10.0]
[1674247272419,10.0,24.154,24.127,10.0]
[1674247272620,10.0,24.154,24.132,23.75576951]
[1674247272821,10.0,24.154,24.133,20.0]
[1674247273033,10.0,24.154,24.133,27.47229466]
[1674247273357,36.83488101,24.17,24.134,31.08]
[1674247273567,36.83488101,24.17,24.133,20.0]
[1674247273568,10.0,24.151,24.135,37.96]
[1674247273762,10.0,24.151,24.133,20.0]
[1674247274101,10.0,24.151,24.128,10.0]
[1674247274295,38.99288101,24.15,24.133,10.0]
[1674247274500,2.64691,24.149,24.133,10.0]
[1674247274721,2.64691,24.149,24.134,10.0]
[1674247274937,39.59473101,24.148,24.134,10.0]
[1674247275148,39.59473101,24.148,24.136,10.0]
[1674247275577,17.0,24.147,24.136,10.0]
[1674247275780,61.36290505,24.151,24.136,10.0]
[1674247275974,10.0,24.15,24.136,10.0]
[1674247276182,10.0,24.15,24.136,33.75576951]
[1674247276400,10.0,24.15,24.136,10.0]
[1674247276605,10.0,24.15,24.134,23.75576951]
[1674247276831,10.0,24.147,24.122,10.0]
[1674247277040,63.22883838,24.149,24.122,10.0]
[1674247277360,102.68690272,24.146,24.122,10.0]
[1674247277552,159.5002348,24.146,24.122,10.0]
[1674247277763,93.61,24.16,24.122,10.0]
[1674247277764,159.5002348,24.145,24.122,10.0]
[1674247278097,17.0,24.144,24.122,10.0]
[1674247278310,63.22883838,24.145,24.122,10.0]
[1674247278496,81.18883838,24.144,24.116,10.0]
[1674247278921,207.78883838,24.144,24.116,10.0]
[1674247279130,126.6,24.142,24.116,10.0]
[1674247279355,17.96,24.141,24.116,10.0]
[1674247279571,126.6,24.14,24.116,10.0]
[1674247279755,17.96,24.139,24.116,10.0]
[1674247279968,63.63619767,24.141,24.116,10.0]
[1674247280174,10.0,24.139,24.116,10.0]
[1674247280411,2.64691,24.138,24.116,10.0]
[1674247280714,23.24,24.16,24.116,10.0]
[1674247280934,2.64691,24.154,24.116,10.0]
[1674247281128,2.64691,24.154,24.118,31.1]
[1674247281545,2.64691,24.154,24.12,10.0]
[1674247281751,2.64691,24.154,24.13,23.28]
[1674247281968,2.64691,24.154,24.121,51.1]
[1674247282181,57.43961505,24.154,24.121,51.1]
[1674247282397,184.03961505,24.154,24.12,10.0]
[1674247282603,35.82413101,24.153,24.145,8.3]
[1674247282810,162.42413101,24.153,24.12,10.0]
[1674247283230,35.82413101,24.152,24.12,10.0]
[1674247283556,23.24,24.15,24.115,10.0]
[1674247283750,10.0,24.149,24.115,10.0]
[1674247283974,10.0,24.147,24.108,10.0]
[1674247284291,23.60691,24.146,24.108,10.0]
[1674247284496,17.0,24.145,24.108,10.0]
[1674247284816,54.91490505,24.145,24.108,10.0]
[1674247285158,39.02879767,24.144,24.108,10.0]
[1674247285370,17.0,24.143,24.108,10.0]
[1674247285552,34.67691,24.142,24.108,10.0]
[1674247285761,19.64691,24.141,24.108,10.0]
[1674247285982,0.96,24.14,24.108,10.0]
[1674247286195,126.6,24.138,24.108,10.0]
[1674247286402,126.6,24.136,24.108,10.0]
[1674247286617,37.96,24.135,24.108,10.0]
[1674247287269,2.64691,24.134,24.108,10.0]
[1674247287448,0.96,24.133,24.108,10.0]
[1674247287655,2.64691,24.132,24.108,10.0]
[1674247287869,0.96,24.131,24.107,10.0]
[1674247288188,2.64691,24.13,24.107,10.0]
[1674247288394,167.48210767,24.13,24.107,8.5]
[1674247288612,126.6,24.128,24.086,31.14]
[1674247288814,126.6,24.126,24.099,7.5]
[1674247289034,20.60691,24.125,24.099,7.5]
[1674247289247,2.64691,24.124,24.099,7.5]
[1674247289460,0.96,24.123,24.099,7.5]
[1674247289668,2.64691,24.122,24.099,7.5]
[1674247289861,0.96,24.121,24.099,7.5]
[1674247290297,10.0,24.129,24.099,7.5]
[1674247290489,2.64691,24.128,24.099,7.5]
[1674247290705,66.85297808,24.128,24.099,7.5]
[1674247291125,66.85297808,24.128,24.1,20.0]
[1674247291347,64.15840142,24.127,24.1,20.0]
[1674247291553,2.64691,24.126,24.101,10.0]
[1674247291766,2.64691,24.126,24.102,20.0]
[1674247292081,10.0,24.134,24.102,20.0]
[1674247292286,20.0,24.133,24.102,20.0]
[1674247292498,10.0,24.131,24.102,20.0]
[1674247292829,12.64691,24.131,24.102,20.0]
[1674247293026,2.64691,24.13,24.102,20.0]
[1674247293569,10.96,24.129,24.103,10.0]
[1674247293758,19.64691,24.128,24.104,20.0]
[1674247293967,2.64691,24.127,24.104,20.0]
[1674247294389,2.64691,24.127,24.105,31.12]
[1674247294699,2.64691,24.127,24.106,30.0]
[1674247294905,114.5399,24.141,24.11,23.4]
[1674247295114,2.64691,24.14,24.111,69.07]
[1674247295557,2.64691,24.14,24.112,0.96]
[1674247295761,2.64691,24.14,24.112,10.96]
[1674247296081,10.0,24.15,24.113,20.0]
[1674247296289,150.35576951,24.142,24.112,10.0]
[1674247296518,153.6,24.141,24.112,10.0]
[1674247296933,27.0,24.141,24.112,10.0]
[1674247297148,2.64691,24.14,24.112,10.0]
[1674247297677,2.64691,24.14,24.113,20.0]
[1674247297893,2.64691,24.14,24.114,0.96]
[1674247298082,2.64691,24.14,24.113,20.0]
[1674247298292,2.64691,24.14,24.114,10.0]
[1674247298741,181.43576951,24.139,24.107,10.0]
[1674247298929,22.64691,24.138,24.107,10.0]
[1674247299138,17.96,24.137,24.107,10.0]
[1674247299356,10.0,24.135,24.107,10.0]
[1674247299981,10.0,24.141,24.107,10.0]
[1674247300206,2.64691,24.14,24.107,10.0]
[1674247300609,2.64691,24.14,24.11,23.4]
[1674247300951,2.64691,24.14,24.111,37.96]
[1674247301158,2.64691,24.14,24.112,31.11]
[1674247301465,2.64691,24.14,24.114,10.0]
[1674247301782,0.64691,24.14,24.114,10.0]
[1674247301996,31.07,24.144,24.114,10.0]
[1674247302305,10.0,24.144,24.114,10.0]
[1674247302522,17.0,24.143,24.114,10.0]
[1674247302931,17.0,24.143,24.111,20.0]
[1674247303128,10.0,24.144,24.108,20.0]
[1674247303336,12.64691,24.144,24.109,10.0]
[1674247303543,12.64691,24.144,24.11,51.11]
[1674247303753,41.07,24.144,24.11,20.0]
[1674247303989,10.0,24.144,24.11,20.0]
[1674247304510,126.6,24.142,24.11,20.0]
[1674247304721,150.0,24.14,24.093,41.14]
[1674247304939,126.6,24.138,24.093,10.0]
[1674247305154,126.6,24.136,24.093,10.0]
[1674247305349,126.6,24.134,24.091,104.8103259]
[1674247305563,126.6,24.132,24.094,10.0]
[1674247305782,17.96,24.131,24.094,10.0]
[1674247305996,2.64691,24.131,24.094,10.0]
[1674247306204,3.60691,24.13,24.095,31.13]
[1674247306426,2.64691,24.129,24.096,10.0]
[1674247306621,0.96,24.128,24.096,10.0]
[1674247307263,10.0,24.127,24.094,10.0]
[1674247307668,17.96,24.126,24.094,10.0]
[1674247308105,20.0,24.125,24.092,10.0]
[1674247308308,10.0,24.123,24.092,10.0]
[1674247308504,17.96,24.122,24.092,10.0]
[1674247309031,17.0,24.122,24.092,10.0]
[1674247309233,2.64691,24.123,24.092,10.0]
[1674247309449,10.0,24.13,24.092,10.0]
[1674247309658,10.0,24.13,24.093,31.14]
[1674247310103,10.0,24.136,24.093,31.14]
[1674247310406,10.0,24.139,24.1,23.28]
[1674247310615,10.0,24.139,24.095,10.0]
[1674247310616,136.6,24.139,24.101,68.12]
[1674247310813,126.6,24.137,24.102,10.0]
[1674247311022,2.64691,24.136,24.095,10.0]
[1674247311239,10.0,24.134,24.095,10.0]
[1674247311439,126.6,24.132,24.093,10.0]
[1674247311650,126.6,24.13,24.093,10.0]
[1674247311876,2.64691,24.131,24.093,10.0]
[1674247312201,2.64691,24.131,24.101,10.0]
[1674247312593,2.64691,24.131,24.093,10.0]
[1674247312807,2.64691,24.131,24.094,20.0]
[1674247313225,10.96,24.13,24.095,10.0]
[1674247313446,17.0,24.129,24.096,20.0]
[1674247313665,17.0,24.129,24.096,51.13]
[1674247313853,17.0,24.129,24.096,20.0]
[1674247314064,2.64691,24.128,24.1,23.25]
[1674247314273,10.0,24.134,24.101,31.12]
[1674247314485,136.6,24.139,24.101,31.12]
[1674247314805,116.6141,24.14,24.102,23.75576951]
[1674247315015,116.6141,24.14,24.103,31.12]
[1674247315227,110.3516,24.141,24.11,23.39]
[1674247315547,110.3516,24.141,24.111,37.96]
[1674247315769,10.0,24.14,24.112,10.0]
[1674247316078,10.0,24.14,24.113,17.96]
[1674247316275,110.3516,24.141,24.113,40.75576951]
[1674247316484,110.3516,24.141,24.114,33.75576951]
[1674247316817,129.24691,24.14,24.1,23.25]
[1674247317015,31.08,24.139,24.1,23.25]
[1674247317229,10.0,24.139,24.1,23.25]
[1674247317644,69.04,24.138,24.1,23.25]
[1674247318065,164.56,24.138,24.098,31.13]
[1674247318397,126.6,24.136,24.099,10.0]
[1674247318582,126.6,24.134,24.099,10.0]
[1674247318792,126.6,24.134,24.09,23.4]
[1674247318793,10.0,24.132,24.096,31.13]
[1674247319023,2.64691,24.135,24.1,23.18]
[1674247319231,2.64691,24.135,24.101,30.0]
[1674247319437,41.07,24.147,24.102,31.12]
[1674247319752,41.06,24.148,24.103,37.96]
[1674247319962,23.75576951,24.149,24.11,23.3]
[1674247320173,10.0,24.14,24.112,10.0]
[1674247320379,10.0,24.14,24.113,20.0]
[1674247320930,23.75576951,24.139,24.101,10.0]
[1674247321115,10.0,24.137,24.103,10.0]
[1674247321329,126.6,24.135,24.103,10.0]
[1674247321549,10.0,24.132,24.103,10.0]
[1674247321745,32.05,24.131,24.103,10.0]
[1674247321963,17.96,24.131,24.103,10.0]
[1674247322180,10.0,24.13,24.103,10.0]
[1674247322395,20.60691,24.129,24.103,10.0]
[1674247322610,10.0,24.128,24.103,10.0]
[1674247322805,19.64691,24.127,24.103,10.0]
[1674247323019,0.96,24.126,24.103,10.0]
[1674247323232,17.0,24.127,24.104,20.0]
[1674247323443,17.0,24.129,24.104,20.0]
[1674247323652,10.0,24.13,24.104,20.0]
[1674247323859,10.0,24.13,24.105,10.0]
[1674247324292,10.0,24.13,24.104,20.0]
[1674247324497,2.64691,24.129,24.104,20.0]
[1674247324702,31.09,24.128,24.104,20.0]
[1674247324927,2.64691,24.128,24.104,20.0]
[1674247325123,0.96,24.127,24.105,10.0]
[1674247325332,17.96,24.127,24.105,10.0]
[1674247325544,17.96,24.127,24.103,10.0]
[1674247325545,2.64691,24.126,24.103,10.0]
[1674247325747,0.96,24.125,24.104,20.0]
[1674247326285,0.96,24.125,24.105,10.0]
[1674247326492,10.0,24.134,24.105,10.0]
[1674247327869,12.64691,24.132,24.105,10.0]
[1674247328090,10.0,24.13,24.105,10.0]
[1674247328390,0.96,24.129,24.105,10.0]
[1674247328922,10.0,24.134,24.105,10.0]
[1674247329121,10.0,24.134,24.106,20.0]
[1674247329327,10.0,24.134,24.106,31.12]
[1674247329548,10.0,24.134,24.101,10.0]
[1674247329756,157.68,24.133,24.102,20.0]
[1674247329957,2.64691,24.132,24.101,10.0]
[1674247330172,167.69,24.131,24.095,10.0]
[1674247330388,126.6,24.129,24.095,10.0]
[1674247330620,37.96,24.128,24.095,10.0]
[1674247330815,10.0,24.127,24.095,10.0]
[1674247331027,17.96,24.126,24.095,10.0]
[1674247331232,17.0,24.126,24.095,10.0]
[1674247331969,17.0,24.128,24.096,31.13]
[1674247332190,46.58498213,24.127,24.098,20.0]
[1674247332400,46.58498213,24.127,24.095,10.0]
[1674247332401,163.6,24.126,24.095,10.0]
[1674247332591,10.0,24.124,24.095,10.0]
[1674247332801,157.69,24.125,24.095,10.0]
[1674247332802,126.6,24.125,24.095,10.0]
[1674247333141,10.0,24.133,24.096,10.0]
[1674247333542,10.0,24.133,24.097,41.13]
[1674247333753,10.0,24.133,24.097,10.0]
[1674247333961,119.8035,24.134,24.099,10.0]
[1674247334180,119.8035,24.134,24.1,69.09]
[1674247334594,10.0,24.133,24.101,10.0]
[1674247334814,10.0,24.133,24.102,37.96]
[1674247335005,10.0,24.133,24.103,10.0]
[1674247335216,10.0,24.133,24.104,20.0]
[1674247335445,17.96,24.132,24.104,20.0]
[1674247335761,10.0,24.133,24.105,10.0]
[1674247335968,10.0,24.133,24.106,17.96]
[1674247336170,10.0,24.133,24.106,17.0]
[1674247336375,10.0,24.133,24.107,10.96]
[1674247336580,10.0,24.133,24.108,20.0]
[1674247336913,10.0,24.133,24.104,20.0]
[1674247336914,10.0,24.131,24.101,10.0]
[1674247337119,31.09,24.13,24.101,10.0]
[1674247337331,194.18138213,24.13,24.101,10.0]
[1674247337534,54.45138213,24.129,24.101,10.0]
[1674247337947,37.45138213,24.129,24.101,10.0]
[1674247338161,10.0,24.131,24.101,10.0]
[1674247338369,10.0,24.131,24.101,33.75576951]
[1674247338576,10.0,24.138,24.101,33.75576951]
[1674247338802,10.0,24.138,24.102,51.12]
[1674247339018,110.3516,24.141,24.103,32.34176098]
[1674247339210,10.0,24.146,24.11,23.21]
[1674247339423,10.0,24.146,24.111,17.96]
[1674247339842,10.0,24.146,24.112,20.0]
[1674247340062,10.0,24.146,24.113,17.96]
[1674247340279,10.0,24.146,24.114,20.0]
[1674247340483,10.0,24.146,24.115,17.96]
[1674247340700,10.0,24.146,24.116,20.0]
[1674247340904,10.0,24.146,24.117,17.96]
[1674247341229,10.0,24.146,24.118,30.0]
[1674247341459,10.0,24.146,24.119,17.96]
[1674247341758,10.0,24.146,24.12,20.0]
[1674247342155,10.0,24.146,24.113,10.0]
[1674247342486,150.35576951,24.145,24.113,10.0]
[1674247342697,157.67,24.144,24.102,31.12]
[1674247342906,12.64691,24.143,24.102,10.0]
[1674247343113,31.07,24.142,24.102,10.0]
[1674247343321,17.0,24.141,24.102,10.0]
[1674247343536,127.56,24.14,24.102,10.0]
[1674247343853,10.0,24.137,24.102,10.0]
[1674247344049,10.0,24.135,24.102,10.0]
[1674247344263,0.96,24.134,24.102,10.0]
[1674247344467,17.96,24.134,24.102,10.0]
[1674247344677,10.0,24.133,24.102,10.0]
[1674247345116,10.0,24.135,24.104,20.0]
[1674247345732,31.08,24.134,24.104,20.0]
[1674247345955,10.0,24.133,24.099,10.0]
[1674247346170,20.0,24.132,24.099,10.0]
[1674247346471,126.6,24.13,24.097,6.50429481]
[1674247346687,126.6,24.128,24.097,6.50429481]
[1674247346907,20.96,24.127,24.097,6.50429481]
[1674247347116,17.0,24.126,24.097,6.50429481]
[1674247347301,147.56,24.125,24.097,6.50429481]
[1674247347516,19.64691,24.124,24.097,6.50429481]
[1674247347722,130.20691,24.123,24.097,6.50429481]
[1674247347931,29.64691,24.122,24.097,6.50429481]
[1674247348152,0.96,24.121,24.097,6.50429481]
[1674247348364,127.56,24.121,24.097,6.50429481]
[1674247348675,126.6,24.119,24.097,6.50429481]
[1674247348885,17.96,24.118,24.097,6.50429481]
[1674247349324,20.0,24.117,24.091,94.8103259]
[1674247349510,126.6,24.115,24.091,94.8103259]
[1674247349726,126.6,24.113,24.091,94.8103259]
[1674247349931,126.6,24.111,24.091,94.8103259]
[1674247350145,126.6,24.109,24.091,94.8103259]
[1674247350351,126.6,24.107,24.091,94.8103259]
[1674247350557,10.0,24.105,24.091,94.8103259]
[1674247350794,0.96,24.104,24.091,94.8103259]
[1674247350986,17.96,24.104,24.091,94.8103259]
[1674247351200,17.96,24.104,24.091,41.70758563]
[1674247351531,136.6,24.103,24.091,41.70758563]
[1674247351734,10.0,24.101,24.091,41.70758563]
[1674247351945,37.46054062,24.103,24.091,41.70758563]
[1674247352154,31.11,24.109,24.091,41.70758563]
[1674247352350,37.41027396,24.108,24.091,41.70758563]
[1674247352560,10.0,24.107,24.092,10.0]
[1674247352780,37.41027396,24.108,24.092,10.0]
[1674247352987,31.11,24.113,24.092,10.0]
[1674247353197,126.6,24.119,24.092,10.0]
[1674247353198,10.0,24.117,24.092,10.0]
[1674247353404,37.41027396,24.111,24.091,41.70758563]
[1674247353720,10.0,24.117,24.093,10.0]
[1674247354582,126.6,24.116,24.093,10.0]
[1674247354771,10.0,24.114,24.093,10.0]
[1674247355742,12.64691,24.117,24.093,10.0]
[1674247355932,10.0,24.117,24.094,20.0]
[1674247356351,10.0,24.117,24.095,10.0]
[1674247356992,10.0,24.118,24.095,10.0]
[1674247357309,10.0,24.123,24.095,10.0]
[1674247357310,136.6,24.123,24.095,10.0]
[1674247357501,10.0,24.123,24.095,10.0]
[1674247358342,136.6,24.121,24.095,10.0]
[1674247358553,136.6,24.121,24.091,41.70758563]
[1674247358554,126.6,24.119,24.091,41.70758563]
[1674247358777,136.6,24.117,24.091,41.70758563]
[1674247358990,126.6,24.115,24.091,41.70758563]
[1674247359203,126.6,24.113,24.091,41.70758563]
[1674247359404,195.67,24.112,24.091,41.70758563]
[1674247359606,10.0,24.111,24.091,41.70758563]
[1674247359826,17.0,24.11,24.091,41.70758563]
[1674247360022,0.96,24.109,24.091,41.70758563]
[1674247360238,17.0,24.11,24.092,10.0]
[1674247360563,10.0,24.111,24.092,10.0]
[1674247360765,10.0,24.111,24.091,41.70758563]
[1674247361498,126.6,24.109,24.091,41.70758563]
[1674247361716,10.0,24.107,24.091,41.70758563]
[1674247361936,0.96,24.106,24.091,41.70758563]
[1674247362125,17.96,24.106,24.091,41.70758563]
[1674247362341,150.35576951,24.105,24.091,41.70758563]
[1674247362552,153.6,24.104,24.091,41.70758563]
[1674247362762,0.96,24.103,24.091,41.70758563]
[1674247362981,24.71576951,24.103,24.091,41.70758563]
[1674247363178,191.11153902,24.102,24.091,41.70758563]
[1674247363408,150.35576951,24.102,24.091,41.70758563]
[1674247363721,17.96,24.101,24.091,41.70758563]
[1674247363960,17.96,24.101,24.069,10.0]
[1674247363961,10.0,24.1,24.069,10.0]
[1674247364137,10.0,24.1,24.072,23.75576951]
[1674247364336,144.56,24.099,24.072,23.75576951]
[1674247364547,126.6,24.097,24.069,10.0]
[1674247364761,47.96,24.096,24.069,33.75576951]
[1674247364978,34.48810926,24.104,24.08,23.21]
[1674247365183,10.0,24.117,24.081,31.15]
[1674247365516,10.0,24.117,24.09,23.4]
[1674247365707,10.0,24.117,24.091,10.0]
[1674247366125,10.0,24.117,24.092,20.0]
[1674247366354,10.0,24.117,24.091,10.0]
[1674247367098,10.0,24.117,24.092,63.02316304]
[1674247367280,10.0,24.117,24.092,105.27142693]
[1674247367493,10.0,24.117,24.093,42.37591037]
[1674247367732,10.0,24.117,24.094,30.0]
[1674247369491,17.0,24.116,24.094,20.0]
[1674247369713,10.0,24.115,24.091,10.0]
[1674247369920,19.64691,24.114,24.087,23.75576951]
[1674247370124,0.96,24.113,24.087,23.75576951]
[1674247370456,0.96,24.113,24.085,10.0]
[1674247370457,13.60691,24.113,24.085,10.0]
[1674247370648,17.0,24.112,24.085,10.0]
[1674247370861,0.96,24.111,24.085,10.0]
[1674247371491,10.96,24.111,24.085,10.0]
[1674247371717,17.0,24.11,24.085,10.0]
[1674247371918,17.0,24.11,24.081,10.0]
[1674247371919,19.64691,24.11,24.081,10.0]
[1674247372136,181.31691,24.109,24.081,10.0]
[1674247372345,181.31691,24.109,24.077,10.0]
[1674247372346,19.64691,24.108,24.077,10.0]
[1674247372659,10.0,24.106,24.075,10.0]
[1674247372873,126.6,24.104,24.075,10.0]
[1674247373063,10.0,24.102,24.075,7.5]
[1674247373282,0.96,24.101,24.075,7.5]
[1674247373603,17.96,24.101,24.075,31.25576951]
[1674247373812,0.96,24.101,24.075,7.5]
[1674247374023,10.0,24.102,24.075,7.5]
[1674247374240,17.96,24.101,24.075,7.5]
[1674247374427,10.0,24.1,24.075,7.5]
[1674247374634,17.96,24.099,24.075,7.5]
[1674247375277,126.6,24.097,24.04,27.81125342]
[1674247375480,53.77691,24.098,24.041,10.0]
[1674247375481,23.4,24.09,24.041,10.0]
[1674247375705,289.02151,24.089,24.041,10.0]
[1674247375902,20.60691,24.088,24.042,31.2]
[1674247376110,126.6,24.086,24.042,31.2]
[1674247376423,126.6,24.079,24.041,10.0]
[1674247376645,126.6,24.079,24.03,23.21]
[1674247376646,126.6,24.077,24.033,10.0]
[1674247376858,181.36691,24.076,24.033,10.0]
[1674247377066,19.64691,24.075,24.033,10.0]
[1674247377282,289.04151,24.074,24.033,10.0]
[1674247377475,13.60691,24.073,24.035,10.0]
[1674247377685,10.0,24.071,24.031,29.22]
[1674247377899,71.76691,24.07,24.03,46.96576951]
[1674247378131,17.96,24.069,24.032,23.75576951]
[1674247378323,17.96,24.069,24.031,10.0]
[1674247378324,49.13,24.069,24.031,10.0]
[1674247378536,10.0,24.067,24.032,23.75576951]
[1674247378753,39.64691,24.066,24.032,23.75576951]
[1674247378977,0.96,24.065,24.031,10.0]
[1674247379166,12.64691,24.064,24.031,10.0]
[1674247379377,17.0,24.063,24.031,10.0]
[1674247379586,3.60691,24.062,24.032,23.75576951]
[1674247379790,33.82691,24.061,24.031,10.0]
[1674247380008,20.60691,24.06,24.031,33.75576951]
[1674247380215,53.82691,24.059,24.031,33.75576951]
[1674247380428,12.64691,24.058,24.031,9.5]
[1674247380632,49.14,24.057,24.031,9.5]
[1674247380856,0.96,24.059,24.032,23.75576951]
[1674247381491,0.96,24.059,24.033,10.0]
[1674247381701,10.0,24.062,24.033,10.0]
[1674247381912,2.64691,24.061,24.034,23.75576951]
[1674247382233,158.74,24.06,24.033,10.0]
[1674247382457,10.0,24.058,24.031,9.5]
[1674247382639,22.64691,24.057,24.031,9.5]
[1674247382844,20.60691,24.056,24.031,9.5]
[1674247383072,22.64691,24.055,24.031,9.5]
[1674247383263,22.64691,24.055,24.016,10.0]
[1674247383264,20.60691,24.054,24.016,10.0]
[1674247383480,136.6,24.052,24.016,10.0]
[1674247383691,126.6,24.05,24.016,10.0]
[1674247383904,71.79691,24.049,24.016,10.0]
[1674247384110,2.64691,24.048,24.016,33.75576951]
[1674247384332,10.0,24.046,24.016,33.75576951]
[1674247384545,71.80691,24.045,24.016,33.75576951]
[1674247384752,2.64691,24.044,24.016,33.75576951]
[1674247385072,10.96,24.043,24.012,10.0]
[1674247385280,19.64691,24.042,24.012,10.0]
[1674247385497,13.60691,24.041,24.006,10.0]
[1674247385693,13.60691,24.041,24.002,10.0]
[1674247385694,126.6,24.039,24.002,10.0]
[1674247385903,33.85691,24.038,24.007,23.75576951]
[1674247386232,136.6,24.036,24.0,23.0]
[1674247386449,136.6,24.036,24.004,94.3103259]
[1674247386450,126.6,24.029,24.004,94.3103259]
[1674247386643,160.46691,24.028,24.004,93.8103259]
[1674247386966,10.0,24.026,24.004,93.8103259]
[1674247387169,126.6,24.024,24.004,93.8103259]
[1674247387378,70.86691,24.025,24.004,93.8103259]
[1674247387379,34.83691,24.023,24.004,93.8103259]
[1674247387692,49.64691,24.022,24.004,93.8103259]
[1674247387903,33.87691,24.021,24.004,93.8103259]
[1674247388233,68.99506583,24.022,24.0,23.0]
[1674247388415,23.4,24.01,23.974,5.0]
[1674247388625,23.4,24.01,23.974,4.5]
[1674247388626,2.64691,24.009,23.974,4.5]
[1674247388839,23.4,24.0,23.968,23.75576951]
[1674247389056,33.90691,23.999,23.961,9.5]
[1674247389268,23.25,23.99,23.956,23.75576951]